[Event "3rd FIDE WCCC Blitz G08 2019"]
[Site "Minsk"]
[Date "2019.08.18"]
[Round "9.2"]
[White "Matskevich, Varvara"]
[Black "Phan, Nguyen Mai Chi"]
[Result "1/2-1/2"]
[ECO "B76"]
[WhiteElo "1176"]
[BlackElo "2139"]
[Annotator "ChessBase"]
[PlyCount "214"]
[EventDate "2019.08.18"]
[EventType "swiss"]
[EventCountry "BLR"]
[SourceTitle "playchess.com"]
[Source "ChessBase"]
[SourceQuality "1"]
[TimeControl "300+2"]

1. e4 {[%emt 0:00:00]} c5 {[%emt 0:00:00]} 2. Nf3 {[%emt 0:00:02]} d6 {[%emt 0:00:00]} 3. d4 {[%emt 0:00:02]} cxd4 {[%emt 0:00:00]} 4. Nxd4 {[%emt 0:00:01]} Nf6 {[%emt 0:00:02]} 5. Nc3 {[%emt 0:00:01]} g6 {[%emt 0:00:01]} 6. f3 {[%emt 0:00:03]} Bg7 {[%emt 0:00:01]} 7. Be3 {[%emt 0:00:01]} O-O {[%emt 0:00:03]} 8. Be2 {[%emt 0:00:02]} Nc6 {[%emt 0:00:01]} 9. O-O {[%emt 0:00:04]} Bd7 {[%emt 0:00:01]} 10. a3 {[%emt 0:00:12]} Nxd4 {[%emt 0:00:05]} 11. Bxd4 {[%emt 0:00:03]} Bc6 {[%emt 0:00:02]} 12. Qd2 {[%emt 0:00:13]} Qc7 {[%emt 0:00:03]} 13. Rac1 {[%emt 0:00:13]} Rfd8 {[%emt 0:00:03]} 14. Bb5 {[%emt 0:00:08]} a6 {[%emt 0:00:08]} 15. Bxc6 {[%emt 0:00:04]} Qxc6 16. Rcd1 {[%emt 0:00:17]} Rac8 {[%emt 0:00:04]} 17. Rfe1 {[%emt 0:00:05]} b5 {[%emt 0:00:01]} 18. Qe2 {[%emt 0:00:24]} Qc7 {[%emt 0:00:13]} 19. Kh1 {[%emt 0:00:13]} Qc4 {[%emt 0:00:02]} 20. Qxc4 {[%emt 0:00:09]} Rxc4 {[%emt 0:00:02]} 21. Bb6 {[%emt 0:00:21]} Rb8 {[%emt 0:00:02]} 22. Ba5 {[%emt 0:00:07]} Rcc8 {[%emt 0:00:19]} 23. Bb4 {[%emt 0:00:11]} Nd7 {[%emt 0:00:06]} 24. Rb1 {[%emt 0:00:27]} Ra8 {[%emt 0:00:03]} 25. Ba5 {[%emt 0:00:06]} Nc5 {[%emt 0:00:04]} 26. Nd5 {[%emt 0:00:06]} Bf6 {[%emt 0:00:21]} 27. Nb6 {[%emt 0:00:03]} Nb7 {[%emt 0:00:04]} 28. Nxa8 {[%emt 0:00:13]} Rxa8 {[%emt 0:00:02]} 29. Bd2 {[%emt 0:00:03]} Rc8 {[%emt 0:00:01]} 30. c3 {[%emt 0:00:01]} Nc5 {[%emt 0:00:02]} 31. Be3 {[%emt 0:00:07]} Nb3 {[%emt 0:00:01]} 32. Red1 {[%emt 0:00:08]} h5 {[%emt 0:00:12]} 33. Kg1 {[%emt 0:00:02]} Kg7 {[%emt 0:00:01]} 34. Kf2 {[%emt 0:00:02]} Rc6 {[%emt 0:00:03]} 35. Ke2 {[%emt 0:00:02]} Na5 {[%emt 0:00:02]} 36. h3 {[%emt 0:00:13]} Nc4 {[%emt 0:00:02]} 37. Bd4 {[%emt 0:00:05]} e5 {[%emt 0:00:09]} 38. Bf2 {[%emt 0:00:03]} Bg5 {[%emt 0:00:02]} 39. Rd5 {[%emt 0:00:20]} Be7 {[%emt 0:00:13]} 40. h4 f6 {[%emt 0:00:02]} 41. Rdd1 {[%emt 0:00:40]} Kf7 {[%emt 0:00:01]} 42. Kd3 {[%emt 0:00:17]} Ke6 {[%emt 0:00:06]} 43. Kc2 {[%emt 0:00:04]} f5 {[%emt 0:00:09]} 44. exf5+ {[%emt 0:00:03]} Kxf5 {[%emt 0:00:02]} 45. Re1 {[%emt 0:00:06]} Bd8 {[%emt 0:00:13]} 46. Kb3 {[%emt 0:00:15]} a5 {[%emt 0:00:15]} 47. Kc2 Be7 {[%emt 0:00:06]} 48. Rbd1 {[%emt 0:00:09]} Bf8 {[%emt 0:00:09]} 49. Rd5 {[%emt 0:00:01]} b4 {[%emt 0:00:15]} 50. axb4 {[%emt 0:00:03]} axb4 {[%emt 0:00:01]} 51. b3 {[%emt 0:00:04]} Nb6 {[%emt 0:00:09]} 52. Rd3 {[%emt 0:00:01]} bxc3 {[%emt 0:00:01]} 53. Rxc3 {[%emt 0:00:01]} Rxc3+ {[%emt 0:00:05]} 54. Kxc3 {[%emt 0:00:01]} Nd5+ {[%emt 0:00:01]} 55. Kc4 {[%emt 0:00:02]} Nf4 {[%emt 0:00:02]} 56. Rg1 {[%emt 0:00:03]} Ne2 {[%emt 0:00:02]} 57. Re1 {[%emt 0:00:02]} Nf4 {[%emt 0:00:01]} 58. g3 {[%emt 0:00:01]} Nh3 {[%emt 0:00:03]} 59. Bb6 {[%emt 0:00:03]} g5 {[%emt 0:00:07]} 60. hxg5 {[%emt 0:00:02]} Nxg5 {[%emt 0:00:01]} 61. Rf1 {[%emt 0:00:03]} Be7 {[%emt 0:00:03]} 62. Kd5 {[%emt 0:00:01]} Nh7 {[%emt 0:00:04]} 63. Be3 {[%emt 0:00:02]} Nf6+ {[%emt 0:00:01]} 64. Kc4 {[%emt 0:00:02]} d5+ {[%emt 0:00:05]} 65. Kd3 {[%emt 0:00:01]} Nd7 {[%emt 0:00:04]} 66. Ba7 {[%emt 0:00:03]} Bb4 {[%emt 0:00:08]} 67. Be3 {[%emt 0:00:03]} Nb8 {[%emt 0:00:02]} 68. Ba7 {[%emt 0:00:02]} Nc6 {[%emt 0:00:01]} 69. Be3 {[%emt 0:00:02]} Ba5 {[%emt 0:00:01]} 70. Ke2 {[%emt 0:00:03]} Bc7 {[%emt 0:00:04]} 71. Bd2 {[%emt 0:00:02]} Nd4+ {[%emt 0:00:03]} 72. Ke3 {[%emt 0:00:01]} Nxb3 {[%emt 0:00:01]} 73. Bb4 {[%emt 0:00:01]} Nd4 {[%emt 0:00:04]} 74. Bc5 {[%emt 0:00:02]} Nb3 {[%emt 0:00:01]} 75. Ba7 {[%emt 0:00:01]} d4+ {[%emt 0:00:03]} 76. Kd3 {[%emt 0:00:02]} Na5 {[%emt 0:00:01]} 77. Bc5 {[%emt 0:00:04]} Nb7 {[%emt 0:00:03]} 78. Bf8 {[%emt 0:00:02]} Nd8 {[%emt 0:00:03]} 79. Ba3 {[%emt 0:00:02]} Ne6 {[%emt 0:00:01]} 80. Bc1 {[%emt 0:00:01]} Nc5+ {[%emt 0:00:02]} 81. Kc4 {[%emt 0:00:01]} Nd7 {[%emt 0:00:02]} 82. Kd3 {[%emt 0:00:02]} Bb6 {[%emt 0:00:03]} 83. Bb2 {[%emt 0:00:02]} Nb8 {[%emt 0:00:02]} 84. Ba3 {[%emt 0:00:02]} Nc6 {[%emt 0:00:01]} 85. Re1 {[%emt 0:00:03]} Bc7 {[%emt 0:00:02]} 86. Re4 {[%emt 0:00:01]} Na7 {[%emt 0:00:06]} 87. Bc5 {[%emt 0:00:02]} Nb5 {[%emt 0:00:01]} 88. Bb4 {[%emt 0:00:02]} Na7 {[%emt 0:00:02]} 89. Re1 {[%emt 0:00:02]} Nc6 {[%emt 0:00:01]} 90. Ba3 {[%emt 0:00:01]} Na5 {[%emt 0:00:01]} 91. Rb1 {[%emt 0:00:03]} Bd8 {[%emt 0:00:07]} 92. Rb5 {[%emt 0:00:01]} Nc6 {[%emt 0:00:02]} 93. Rc5 {[%emt 0:00:03]} Be7 {[%emt 0:00:07]} 94. Rxc6 {[%emt 0:00:02]} Bxa3 {[%emt 0:00:02]} 95. Rh6 {[%emt 0:00:01]} Kg5 {[%emt 0:00:01]} 96. Ra6 {[%emt 0:00:03]} Bc1 {[%emt 0:00:01]} 97. Ke4 {[%emt 0:00:01]} Bd2 {[%emt 0:00:04]} 98. Kxe5 {[%emt 0:00:02]} Be1 {[%emt 0:00:00]} 99. f4+ {[%emt 0:00:02]} Kg4 {[%emt 0:00:02]} 100. Kxd4 {[%emt 0:00:03]} Bxg3 {[%emt 0:00:01]} 101. Rg6+ {[%emt 0:00:04]} Kxf4 {[%emt 0:00:01]} 102. Rh6 {[%emt 0:00:02]} h4 {[%emt 0:00:02]} 103. Kd3 {[%emt 0:00:01]} Kf3 {[%emt 0:00:01]} 104. Rf6+ {[%emt 0:00:02]} Kg2 {[%emt 0:00:01]} 105. Ke2 {[%emt 0:00:01]} h3 {[%emt 0:00:01]} 106. Rh6 {[%emt 0:00:01]} h2 {[%emt 0:00:01]} 107. Rxh2+ {[%emt 0:00:02]} Bxh2 {[%emt 0:00:01]} 1/2-1/2

[Event "3rd FIDE WCCC Blitz G08 2019"]
[Site "Minsk"]
[Date "2019.08.18"]
[Round "9.3"]
[White "Kudrina, Evelina"]
[Black "Tong, Thai Hoang An"]
[Result "0-1"]
[ECO "D45"]
[WhiteElo "1194"]
[BlackElo "1208"]
[Annotator "NA"]
[PlyCount "90"]
[EventDate "2019.08.18"]
[EventType "swiss"]
[EventCountry "BLR"]
[SourceTitle "playchess.com"]
[Source "ChessBase"]
[SourceQuality "1"]
[TimeControl "300+2"]

1. d4 {[%emt 0:00:00]} d5 {[%emt 0:00:00]} 2. c4 {[%emt 0:00:01]} e6 {[%emt 0:00:00]} 3. Nc3 {[%emt 0:00:02]} c6 {[%emt 0:00:01]} 4. e3 {[%emt 0:00:03]} Nf6 {[%emt 0:00:02]} 5. Nf3 {[%emt 0:00:06]} Nbd7 {[%emt 0:00:01]} 6. cxd5 {[%emt 0:00:02]} cxd5 {[%emt 0:00:09]} 7. Bd3 {[%emt 0:00:01]} Bd6 {[%emt 0:00:06]} 8. e4 {[%emt 0:00:08]} dxe4 {[%emt 0:00:04]} 9. Nxe4 {[%emt 0:00:03]} Nxe4 {[%emt 0:00:02]} 10. Bxe4 {[%emt 0:00:02]} O-O {[%emt 0:00:03]} 11. O-O {[%emt 0:00:02]} Nf6 {[%emt 0:00:02]} 12. Bd3 {[%emt 0:00:08]} b6 {[%emt 0:00:04]} 13. Bg5 {[%emt 0:00:01]} Bb7 {[%emt 0:00:02]} 14. Ne5 {[%emt 0:00:17]} h6 {[%emt 0:00:02]} 15. Bh4 {[%emt 0:00:02]} Rc8 {[%emt 0:00:31]} 16. f4 {[%emt 0:00:26]} Be7 {[%emt 0:00:02]} 17. Be2 {[%emt 0:00:30]} Nd5 {[%emt 0:00:18]} 18. Bxe7 {[%emt 0:00:07]} Qxe7 {[%emt 0:00:02]} 19. Bf3 {[%emt 0:00:05]} Ne3 {[%emt 0:00:01]} 20. Qe2 {[%emt 0:00:15]} Nxf1 {[%emt 0:00:04]} 21. Bxb7 {[%emt 0:00:33]} Qxb7 {[%emt 0:00:02]} 22. Rxf1 {[%emt 0:00:02]} Rc7 {[%emt 0:00:04]} 23. Qg4 {[%emt 0:00:07]} Qe4 {[%emt 0:00:21]} 24. Rd1 {[%emt 0:00:15]} Rfc8 {[%emt 0:00:03]} 25. a3 {[%emt 0:01:27]} Rc1 {[%emt 0:00:03]} 26. b4 {[%emt 0:00:06]} Qe3+ {[%emt 0:00:02]} 27. Kf1 {[%emt 0:00:08]} Rxd1+ {[%emt 0:00:01]} 28. Qxd1 {[%emt 0:00:02]} Rc1 {[%emt 0:00:01]} 29. Qxc1 {[%emt 0:00:09]} Qxc1+ {[%emt 0:00:01]} 30. Ke2 {[%emt 0:00:00]} Qxf4 {[%emt 0:00:03]} 31. Nc6 {[%emt 0:00:05]} Qe4+ {[%emt 0:00:04]} 32. Kf2 {[%emt 0:00:03]} Qxc6 {[%emt 0:00:01]} 33. Ke3 {[%emt 0:00:01]} Qc3+ {[%emt 0:00:01]} 34. Ke4 {[%emt 0:00:02]} Qxa3 {[%emt 0:00:02]} 35. d5 {[%emt 0:00:02]} Qxb4+ {[%emt 0:00:01]} 36. Ke5 {[%emt 0:00:01]} exd5 {[%emt 0:00:03]} 37. Kxd5 {[%emt 0:00:01]} a5 {[%emt 0:00:01]} 38. g4 {[%emt 0:00:02]} a4 {[%emt 0:00:01]} 39. h4 {[%emt 0:00:01]} a3 {[%emt 0:00:00]} 40. g5 {[%emt 0:00:02]} a2 {[%emt 0:00:02]} 41. gxh6 {[%emt 0:00:02]} a1=Q {[%emt 0:00:03]} 42. h7+ {[%emt 0:00:02]} Kxh7 {[%emt 0:00:01]} 43. h5 {[%emt 0:00:00]} Qd1+ {[%emt 0:00:03]} 44. Ke5 {[%emt 0:00:04]} Qe7+ {[%emt 0:00:02]} 45. Kf5 {[%emt 0:00:03]} Qf3# {[%emt 0:00:01]} 0-1

[Event "3rd FIDE WCCC Blitz G08 2019"]
[Site "Minsk"]
[Date "2019.08.18"]
[Round "9.4"]
[White "Olimova, Rukiya"]
[Black "Asachenko, Ksenia"]
[Result "1-0"]
[ECO "D00"]
[WhiteElo "1178"]
[BlackElo "1169"]
[Annotator "NA"]
[PlyCount "53"]
[EventDate "2019.08.18"]
[EventType "swiss"]
[EventCountry "BLR"]
[SourceTitle "playchess.com"]
[Source "ChessBase"]
[SourceQuality "1"]
[TimeControl "300+2"]

1. d4 {[%emt 0:00:00]} d5 {[%emt 0:00:00]} 2. Bf4 {[%emt 0:00:01]} c5 {[%emt 0:00:01]} 3. e3 {[%emt 0:00:01]} Nc6 {[%emt 0:00:01]} 4. Nf3 {[%emt 0:00:03]} Nf6 {[%emt 0:00:02]} 5. Nbd2 {[%emt 0:00:22]} Qb6 {[%emt 0:00:04]} 6. b3 {[%emt 0:00:20]} e6 {[%emt 0:00:13]} 7. dxc5 {[%emt 0:00:05]} Bxc5 {[%emt 0:00:05]} 8. Bd3 {[%emt 0:00:06]} Bd7 {[%emt 0:00:24]} 9. O-O {[%emt 0:00:04]} O-O {[%emt 0:00:38]} 10. Qe2 {[%emt 0:00:08]} Rfe8 {[%emt 0:00:20]} 11. Ne5 {[%emt 0:00:23]} Nxe5 {[%emt 0:00:19]} 12. Bxe5 {[%emt 0:00:02]} Be7 {[%emt 0:00:13]} 13. Nf3 {[%emt 0:00:17]} Ng4 {[%emt 0:00:33]} 14. Bd4 {[%emt 0:00:13]} Qd6 {[%emt 0:00:19]} 15. h3 {[%emt 0:00:27]} Nf6 {[%emt 0:00:13]} 16. Rfd1 {[%emt 0:00:13]} Rac8 {[%emt 0:00:16]} 17. c4 {[%emt 0:00:36]} Qc7 {[%emt 0:00:46]} 18. Rac1 {[%emt 0:00:07]} Qa5 {[%emt 0:00:27]} 19. Ne5 {[%emt 0:01:03]} Bc6 {[%emt 0:00:16]} 20. Nxc6 {[%emt 0:00:07]} Rxc6 {[%emt 0:00:04]} 21. cxd5 {[%emt 0:00:07]} Nxd5 {[%emt 0:00:02]} 22. Rxc6 {[%emt 0:00:05]} bxc6 {[%emt 0:00:03]} 23. Qh5 {[%emt 0:00:13]} h6 {[%emt 0:00:04]} 24. e4 {[%emt 0:00:02]} Qxa2 {[%emt 0:00:12]} 25. exd5 {[%emt 0:00:03]} cxd5 {[%emt 0:00:02]} 26. Qg4 Kh8 {[%emt 0:00:04]} 27. Qxg7# {[%emt 0:00:07]} 1-0

[Event "3rd FIDE WCCC Blitz G08 2019"]
[Site "Minsk"]
[Date "2019.08.18"]
[Round "9.5"]
[White "Polakiewicz, Blanka"]
[Black "Dandish, Izabella"]
[Result "1-0"]
[ECO "B13"]
[WhiteElo "1135"]
[BlackElo "1563"]
[Annotator "NA"]
[PlyCount "109"]
[EventDate "2019.08.18"]
[EventType "swiss"]
[EventCountry "BLR"]
[SourceTitle "playchess.com"]
[Source "ChessBase"]
[SourceQuality "1"]
[TimeControl "300+2"]

1. e4 {[%emt 0:00:00]} c6 {[%emt 0:00:00]} 2. d4 d5 3. exd5 {[%emt 0:00:02]} cxd5 {[%emt 0:00:01]} 4. Bd3 {[%emt 0:00:02]} Nc6 {[%emt 0:00:02]} 5. c3 {[%emt 0:00:01]} Nf6 {[%emt 0:00:02]} 6. h3 {[%emt 0:00:01]} h6 {[%emt 0:00:05]} 7. Nf3 {[%emt 0:00:02]} e6 {[%emt 0:00:01]} 8. O-O {[%emt 0:00:01]} Bd6 {[%emt 0:00:01]} 9. Be3 {[%emt 0:00:17]} O-O {[%emt 0:00:03]} 10. Nbd2 {[%emt 0:00:04]} Qb6 {[%emt 0:00:01]} 11. Rb1 {[%emt 0:00:05]} e5 {[%emt 0:00:04]} 12. dxe5 {[%emt 0:00:06]} Qd8 {[%emt 0:00:06]} 13. exd6 {[%emt 0:00:07]} Qxd6 {[%emt 0:00:03]} 14. Bb5 {[%emt 0:00:10]} Bd7 {[%emt 0:00:06]} 15. Bxc6 {[%emt 0:00:08]} Bxc6 {[%emt 0:00:02]} 16. Nb3 {[%emt 0:00:06]} Rfe8 {[%emt 0:00:12]} 17. Bc5 {[%emt 0:00:09]} Qd7 {[%emt 0:00:09]} 18. Nbd4 {[%emt 0:00:16]} b6 {[%emt 0:00:02]} 19. Bb4 {[%emt 0:00:13]} a5 {[%emt 0:00:06]} 20. Nxc6 {[%emt 0:00:07]} Qxc6 21. Ba3 {[%emt 0:00:08]} Rad8 {[%emt 0:00:26]} 22. Nd4 {[%emt 0:00:08]} Qc7 {[%emt 0:00:04]} 23. Qf3 {[%emt 0:00:22]} Ne4 {[%emt 0:00:20]} 24. Qd3 {[%emt 0:00:23]} Qf4 {[%emt 0:00:09]} 25. Rbd1 {[%emt 0:00:38]} Re5 {[%emt 0:00:15]} 26. Nc6 {[%emt 0:00:26]} Rde8 {[%emt 0:00:21]} 27. Nxe5 {[%emt 0:00:04]} Rxe5 {[%emt 0:00:02]} 28. Qf3 {[%emt 0:00:16]} Qh4 {[%emt 0:00:05]} 29. Rd4 {[%emt 0:01:00]} Rg5 {[%emt 0:00:04]} 30. Be7 {[%emt 0:00:11]} f6 {[%emt 0:00:02]} 31. Ba3 {[%emt 0:00:04]} Kh8 {[%emt 0:00:26]} 32. c4 {[%emt 0:00:02]} Re5 {[%emt 0:00:12]} 33. cxd5 {[%emt 0:00:05]} Qg5 {[%emt 0:00:06]} 34. Rxe4 {[%emt 0:00:03]} Rxd5 {[%emt 0:00:11]} 35. Re8+ {[%emt 0:00:01]} Kh7 {[%emt 0:00:01]} 36. Qe4+ {[%emt 0:00:02]} Rf5 {[%emt 0:00:04]} 37. g4 {[%emt 0:00:03]} h5 {[%emt 0:00:10]} 38. Qxf5+ {[%emt 0:00:02]} Qxf5 {[%emt 0:00:02]} 39. gxf5 {[%emt 0:00:03]} h4 {[%emt 0:00:02]} 40. Re6 {[%emt 0:00:02]} Kh6 {[%emt 0:00:02]} 41. Rxb6 {[%emt 0:00:01]} Kg5 {[%emt 0:00:02]} 42. Ra6 {[%emt 0:00:06]} Kxf5 {[%emt 0:00:03]} 43. Rxa5+ {[%emt 0:00:02]} Kg6 {[%emt 0:00:02]} 44. b4 {[%emt 0:00:01]} Kh7 {[%emt 0:00:05]} 45. b5 {[%emt 0:00:01]} Kg6 {[%emt 0:00:02]} 46. b6 {[%emt 0:00:01]} Kh7 {[%emt 0:00:02]} 47. b7 {[%emt 0:00:01]} Kg6 {[%emt 0:00:01]} 48. b8=Q {[%emt 0:00:03]} Kh7 {[%emt 0:00:04]} 49. Qf4 {[%emt 0:00:05]} Kg8 {[%emt 0:00:10]} 50. Ra8+ {[%emt 0:00:02]} Kh7 {[%emt 0:00:02]} 51. Qxh4+ {[%emt 0:00:02]} Kg6 {[%emt 0:00:03]} 52. Qg4+ {[%emt 0:00:02]} Kf7 {[%emt 0:00:02]} 53. Ra7+ {[%emt 0:00:02]} Ke8 {[%emt 0:00:04]} 54. Qxg7 {[%emt 0:00:04]} f5 {[%emt 0:00:02]} 55. Qg8# {[%emt 0:00:01]} 1-0

[Event "3rd FIDE WCCC Blitz G08 2019"]
[Site "Minsk"]
[Date "2019.08.18"]
[Round "9.6"]
[White "Izafatava, Kira"]
[Black "Ukrainskaya, Ilona"]
[Result "1-0"]
[ECO "B19"]
[WhiteElo "1144"]
[BlackElo "1211"]
[Annotator "NA"]
[PlyCount "81"]
[EventDate "2019.08.18"]
[EventType "swiss"]
[EventCountry "BLR"]
[SourceTitle "playchess.com"]
[Source "ChessBase"]
[SourceQuality "1"]
[TimeControl "300+2"]

1. e4 {[%emt 0:00:00]} c6 2. d4 {[%emt 0:00:03]} d5 {[%emt 0:00:02]} 3. Nd2 {[%emt 0:00:02]} dxe4 {[%emt 0:00:04]} 4. Nxe4 {[%emt 0:00:01]} Bf5 {[%emt 0:00:02]} 5. Ng3 {[%emt 0:00:01]} Bg6 {[%emt 0:00:02]} 6. Nf3 {[%emt 0:00:02]} Nd7 {[%emt 0:00:02]} 7. h4 {[%emt 0:00:10]} h6 {[%emt 0:00:02]} 8. h5 {[%emt 0:00:03]} Bh7 {[%emt 0:00:02]} 9. Bd3 {[%emt 0:00:02]} Bxd3 {[%emt 0:00:04]} 10. Qxd3 {[%emt 0:00:02]} e6 {[%emt 0:00:05]} 11. Bf4 {[%emt 0:00:02]} Be7 {[%emt 0:00:13]} 12. O-O-O {[%emt 0:00:03]} Ngf6 {[%emt 0:00:07]} 13. Ne4 {[%emt 0:00:05]} Nxe4 {[%emt 0:00:10]} 14. Qxe4 {[%emt 0:00:02]} Nf6 {[%emt 0:00:02]} 15. Qe3 {[%emt 0:00:02]} Qd7 {[%emt 0:00:11]} 16. Ne5 {[%emt 0:00:03]} Qd5 {[%emt 0:00:17]} 17. f3 {[%emt 0:00:18]} Rf8 {[%emt 0:00:36]} 18. g4 {[%emt 0:00:24]} O-O-O {[%emt 0:00:08]} 19. Kb1 {[%emt 0:00:05]} Rde8 {[%emt 0:00:46]} 20. c4 {[%emt 0:00:07]} Qd8 {[%emt 0:00:04]} 21. d5 {[%emt 0:00:28]} Qb6 {[%emt 0:00:34]} 22. Qxb6 {[%emt 0:00:25]} axb6 {[%emt 0:00:03]} 23. dxc6 {[%emt 0:00:02]} bxc6 {[%emt 0:00:04]} 24. Nxc6 {[%emt 0:00:05]} Kb7 {[%emt 0:00:11]} 25. Nxe7 {[%emt 0:00:05]} Rxe7 {[%emt 0:00:04]} 26. Bd6 {[%emt 0:00:02]} Ree8 {[%emt 0:00:15]} 27. Bxf8 {[%emt 0:00:02]} Rxf8 {[%emt 0:00:02]} 28. Kc2 {[%emt 0:00:08]} Rc8 {[%emt 0:00:05]} 29. Kb3 {[%emt 0:00:02]} Kc6 30. Kb4 {[%emt 0:00:04]} Rc7 {[%emt 0:00:11]} 31. Rd3 {[%emt 0:00:07]} Nd7 {[%emt 0:00:10]} 32. Rhd1 {[%emt 0:00:05]} Nc5 {[%emt 0:00:03]} 33. Rd6+ {[%emt 0:00:05]} Kb7 {[%emt 0:00:02]} 34. Kb5 {[%emt 0:00:02]} Ka7 {[%emt 0:00:25]} 35. Rxb6 {[%emt 0:00:06]} Rc8 {[%emt 0:00:15]} 36. Rdd6 {[%emt 0:00:26]} Rc7 {[%emt 0:00:11]} 37. Rbc6 {[%emt 0:00:17]} Rxc6 {[%emt 0:00:08]} 38. Kxc6 {[%emt 0:00:04]} Na6 {[%emt 0:00:08]} 39. Rd7+ {[%emt 0:00:03]} Ka8 {[%emt 0:00:02]} 40. Kb6 {[%emt 0:00:02]} Nb4 {[%emt 0:00:06]} 41. Rd8# {[%emt 0:00:03]} 1-0